[Event "WEM-KT 2018"]
[Site "Illertissen"]
[Date "2018.09.01"]
[Round "8"]
[White "Jooss, Achim"]
[Black "Gabriel, Josef"]
[Result "0-1"]
[ECO "A31"]
[WhiteElo "1749"]
[BlackElo "2124"]
[Annotator "NA"]
[PlyCount "90"]
[EventDate "2018.08.25"]
[EventType "tourn"]
[EventCountry "GER"]
[SourceTitle "playchess.com"]
[Source "ChessBase"]
[SourceQuality "1"]
[TimeControl "40/6000+30:3000+30"]

1. d4 {[%emt 0:09:33]} g6 {[%emt 0:13:09]} 2. Nf3 {[%emt 0:00:09]} Bg7 {[%emt 0:00:12]} 3. e3 {[%emt 0:00:11]} c5 {[%emt 0:01:22]} 4. Bd3 {[%emt 0:01:43]} Nf6 {[%emt 0:01:32]} 5. O-O {[%emt 0:00:26]} b6 {[%emt 0:00:08]} 6. c4 {[%emt 0:00:19]} O-O {[%emt 0:01:10]} 7. d5 {[%emt 0:00:32]} d6 {[%emt 0:02:21]} 8. Nc3 {[%emt 0:00:33]} e6 {[%emt 0:01:08] A31: Symmetrical English: 2 Nf3 Nf6 3 d4} (8... a6 9. h3 e6 10. e4 Ra7 11. Be3 Re7 12. Qd2 Nbd7 13. dxe6 fxe6 14. Rad1 Ne5 15. Be2 Rd7 16. Ng5 {1-0 (36) Golubov,S (2506)-Nagy,G (2448) Budapest 2017}) 9. e4 {[%emt 0:00:53]} e5 {[%emt 0:06:18]} 10. h3 {[%emt 0:01:19]} Nbd7 {[%emt 0:00:31]} 11. Nh2 $146 {[%emt 0:05:54]} ({Predecessor:} 11. Re1 Bb7 12. Bc2 a6 13. Be3 Rc8 14. Qd2 Nh5 15. Ba4 Qe7 16. Rab1 Ba8 17. Nh2 {1-0 (26) Teipel,T-Theeuf,J ICCF email 2009}) 11... a6 {[%emt 0:00:58]} 12. Bg5 {[%emt 0:04:58]} h6 {[%emt 0:00:53]} 13. Be3 {[%emt 0:00:18]} Kh7 {[%emt 0:01:09]} 14. Qd2 {[%emt 0:02:33]} Rg8 {[%emt 0:01:52]} 15. f4 {[%emt 0:02:27]} Nh5 {[%emt 0:02:27]} 16. f5 {[%emt 0:02:42]} g5 {[%emt 0:05:00]} 17. Ng4 {[%emt 0:07:04]} Nf4 {[%emt 0:04:23]} 18. Bc2 {[%emt 0:03:49]} h5 {[%emt 0:00:23]} 19. Nf2 {[%emt 0:02:05]} Bh6 {[%emt 0:02:41]} 20. g3 {[%emt 0:06:27]} h4 {[%emt 0:00:48]} 21. g4 {[%emt 0:02:55]} Nf6 {[%emt 0:00:29]} 22. Kh2 {[%emt 0:02:14]} Bd7 {[%emt 0:02:03]} 23. a4 {[%emt 0:00:39]} Rb8 {[%emt 0:00:12]} 24. b3 {[%emt 0:03:12]} Rb7 {[%emt 0:00:47]} 25. Ra3 {[%emt 0:03:26]} Qc7 {[%emt 0:00:20]} 26. Rfa1 {[%emt 0:00:33]} Rgb8 {[%emt 0:00:10]} 27. Nd3 {[%emt 0:04:54]} b5 {[%emt 0:01:39]} 28. axb5 {[%emt 0:00:31]} axb5 {[%emt 0:00:02]} 29. cxb5 {[%emt 0:06:26]} Bxb5 {[%emt 0:00:35]} 30. Nxb5 {[%emt 0:00:20]} Rxb5 {[%emt 0:00:02]} 31. Ra7 {[%emt 0:01:00]} R8b7 {[%emt 0:00:45]} 32. Rxb7 {[%emt 0:00:27]} Qxb7 {[%emt 0:00:10]} 33. Nb2 {[%emt 0:01:00]} Rxb3 $14 {[%emt 0:01:51]} 34. Nc4 {[%emt 0:03:52]} Rb4 {[%emt 0:06:56]} 35. Nxd6 {[%emt 0:02:01]} Qc7 {[%emt 0:00:20]} 36. Ra6 {[%emt 0:01:11]} Bf8 {[%emt 0:10:44]} 37. Rc6 {[%emt 0:00:19]} Qxd6 {[%emt 0:00:08]} 38. Rxd6 {[%emt 0:00:18]} Bxd6 {[%emt 0:00:06]} 39. Qc3 {[%emt 0:04:06]} Nxe4 {[%emt 0:02:03]} 40. Bxe4 {[%emt 0:01:32]} Rxe4 {[%emt 0:00:52]} 41. Bxc5 {[%emt 0:55:08]} Re2+ {[%emt 0:50:20]} 42. Kg1 {[%emt 0:01:26]} Nxd5 {[%emt 0:05:04]} 43. Qa3 {[%emt 0:03:06]} Bxc5+ {[%emt 0:01:45]} 44. Qxc5 {[%emt 0:00:06]} Nf4 {[%emt 0:00:24]} 45. Kf1 {[%emt 0:03:47]} Re1+ {[%emt 0:02:26]} 0-1

[Event "WEM-KT 2018"]
[Site "Illertissen"]
[Date "2018.09.01"]
[Round "8"]
[White "Schelberg, Martin, Dr."]
[Black "Bildt, Maximilian"]
[Result "0-1"]
[ECO "B52"]
[WhiteElo "1727"]
[BlackElo "2073"]
[Annotator "NA"]
[PlyCount "68"]
[EventDate "2018.08.25"]
[EventType "tourn"]
[EventCountry "GER"]
[SourceTitle "playchess.com"]
[Source "ChessBase"]
[SourceQuality "1"]
[TimeControl "40/6000+30:3000+30"]

1. e4 {[%emt 0:09:36]} c5 {[%emt 0:09:33]} 2. Nf3 {[%emt 0:00:14]} d6 {[%emt 0:00:03]} 3. Bb5+ {[%emt 0:00:36]} Bd7 {[%emt 0:00:31]} 4. Bxd7+ {[%emt 0:00:57]} Qxd7 {[%emt 0:01:56]} 5. O-O {[%emt 0:02:01]} Nc6 {[%emt 0:02:22]} 6. c3 {[%emt 0:01:12]} Nf6 {[%emt 0:01:12]} 7. Re1 {[%emt 0:04:25]} e6 {[%emt 0:07:41]} 8. d4 {[%emt 0:02:35]} d5 {[%emt 0:01:09]} 9. Nbd2 {[%emt 0:16:03]} cxd4 {[%emt 0:04:30]} 10. cxd4 {[%emt 0:03:15]} Bb4 {[%emt 0:14:08]} 11. exd5 {[%emt 0:15:29]} Qxd5 {[%emt 0:00:55]} 12. a3 {[%emt 0:15:50]} Bd6 {[%emt 0:02:13]} 13. Nf1 {[%emt 0:03:10]} O-O $11 {[%emt 0:02:50]} 14. b4 {[%emt 0:06:22]} Rfd8 {[%emt 0:03:27]} 15. Ne3 {[%emt 0:04:25]} Qh5 {[%emt 0:06:25]} 16. Nc4 {[%emt 0:01:26]} Bc7 {[%emt 0:20:06]} 17. Be3 {[%emt 0:12:26]} b5 {[%emt 0:03:44]} 18. Nce5 {[%emt 0:01:24]} Nxe5 {[%emt 0:02:30]} 19. Nxe5 {[%emt 0:00:29]} Qxd1 {[%emt 0:01:06]} 20. Raxd1 {[%emt 0:00:46]} Bb6 {[%emt 0:00:57]} 21. Nc6 {[%emt 0:02:49]} Rd7 {[%emt 0:04:44]} 22. Rc1 {[%emt 0:00:46]} Nd5 {[%emt 0:01:05]} 23. Bg5 {[%emt 0:00:56]} Rc7 {[%emt 0:01:47]} 24. Rc2 {[%emt 0:02:01]} Rac8 {[%emt 0:02:17]} 25. Rec1 {[%emt 0:00:22]} Kf8 {[%emt 0:03:37]} 26. Bh4 {[%emt 0:00:54]} f5 {[%emt 0:00:44]} 27. g4 {[%emt 0:02:13]} f4 {[%emt 0:00:56]} 28. g5 {[%emt 0:00:34]} Ne7 {[%emt 0:01:00]} 29. g6 {[%emt 0:00:39]} Nxg6 {[%emt 0:00:56]} 30. Bd8 {[%emt 0:00:29]} Rxc6 {[%emt 0:02:29]} 31. Rxc6 {[%emt 0:00:32]} Rxd8 {[%emt 0:00:04]} 32. Rxe6 {[%emt 0:00:24]} Rxd4 {[%emt 0:01:02]} 33. Rc8+ {[%emt 0:00:37]} Kf7 {[%emt 0:00:13]} 34. Ree8 {[%emt 0:00:31]} Rd2 {[%emt 0:00:44]} 0-1

[Event "WEM-KT 2018"]
[Site "Illertissen"]
[Date "2018.09.02"]
[Round "9"]
[White "Laengl, Juergen"]
[Black "Wolf, Rainer"]
[Result "0-1"]
[ECO "C12"]
[WhiteElo "2223"]
[BlackElo "2044"]
[Annotator "ChessBase"]
[PlyCount "138"]
[EventDate "2018.08.25"]
[EventType "tourn"]
[EventCountry "GER"]
[SourceTitle "playchess.com"]
[Source "ChessBase"]
[SourceQuality "1"]
[TimeControl "40/6000+30:3000+30"]

1. d4 {[%emt 0:11:24]} Nf6 {[%emt 0:10:00]} 2. Nc3 {[%emt 0:00:15]} d5 {[%emt 0:00:12]} 3. Bg5 {[%emt 0:00:18]} e6 {[%emt 0:00:43]} 4. e4 {[%emt 0:00:19]} Bb4 {[%emt 0:01:07]} 5. e5 {[%emt 0:00:28]} h6 {[%emt 0:00:24]} 6. Be3 {[%emt 0:00:38]} Ne4 {[%emt 0:00:57]} 7. Qg4 {[%emt 0:00:59]} g6 {[%emt 0:01:47]} 8. a3 {[%emt 0:02:06]} Bxc3+ {[%emt 0:04:06]} 9. bxc3 {[%emt 0:06:16]} c5 {[%emt 0:01:03]} 10. Bd3 {[%emt 0:05:32]} h5 {[%emt 0:00:59]} 11. Qh3 {[%emt 0:07:57]} Nxc3 {[%emt 0:04:23]} 12. dxc5 {[%emt 0:06:01]} Nc6 {[%emt 0:21:29]} 13. Nf3 {[%emt 0:00:31]} d4 {[%emt 0:01:46]} 14. Bg5 {[%emt 0:02:52]} Qa5 {[%emt 0:10:25]} 15. O-O {[%emt 0:00:25]} Qxc5 {[%emt 0:00:14]} 16. Bf6 {[%emt 0:05:58]} Rg8 {[%emt 0:00:24]} 17. Rfe1 {[%emt 0:05:44]} b6 {[%emt 0:09:21]} 18. Ng5 {[%emt 0:10:20]} a6 {[%emt 0:05:13]} 19. Re4 {[%emt 0:29:55]} Ra7 {[%emt 0:06:31]} 20. Rf4 {[%emt 0:00:08]} Nxe5 {[%emt 0:07:35]} 21. Re1 {[%emt 0:01:17]} Ng4 {[%emt 0:07:00]} 22. Rxg4 {[%emt 0:01:14]} Nd5 {[%emt 0:07:58]} 23. Rxd4 {[%emt 0:04:17]} Nxf6 {[%emt 0:00:33]} 24. Rc4 {[%emt 0:01:17]} Qxg5 {[%emt 0:04:01]} 25. Rxc8+ {[%emt 0:00:39]} Ke7 {[%emt 0:00:13]} 26. Rxg8 {[%emt 0:01:27]} Nxg8 {[%emt 0:00:05]} 27. Qf3 {[%emt 0:01:18]} Nf6 {[%emt 0:02:09]} 28. a4 {[%emt 0:00:24]} Qa5 {[%emt 0:00:35]} 29. Qe2 {[%emt 0:00:10]} Kf8 {[%emt 0:00:22]} 30. h3 {[%emt 0:00:25]} Kg7 {[%emt 0:00:27]} 31. Rb1 {[%emt 0:00:07]} Qc5 {[%emt 0:00:39]} 32. Bxa6 {[%emt 0:00:16]} Nd5 {[%emt 0:01:00]} 33. Qe5+ {[%emt 0:00:39]} f6 {[%emt 0:00:19]} 34. Qxe6 {[%emt 0:01:42]} Rxa6 {[%emt 0:00:18]} 35. Rd1 {[%emt 0:00:02]} Ra5 {[%emt 0:00:19]} 36. h4 {[%emt 0:00:23]} Qe7 {[%emt 0:00:31]} 37. Qc6 {[%emt 0:00:31]} Rc5 {[%emt 0:00:19]} 38. Qa8 {[%emt 0:00:14]} Nc3 {[%emt 0:00:51]} 39. Rd8 {[%emt 0:00:36]} Ne2+ {[%emt 0:01:05]} 40. Kh1 {[%emt 0:01:26]} Rc4 {[%emt 0:01:23]} 41. Rg8+ {[%emt 0:26:29]} Kf7 {[%emt 0:22:14]} 42. Qd5+ {[%emt 0:04:21]} Qe6 {[%emt 0:00:27]} 43. Qxe6+ {[%emt 0:00:05]} Kxe6 {[%emt 0:00:13]} 44. Re8+ {[%emt 0:00:02]} Kd5 {[%emt 0:01:07]} 45. Rxe2 {[%emt 0:00:07]} Rxh4+ {[%emt 0:00:04]} 46. Kg1 {[%emt 0:00:06]} Rxa4 {[%emt 0:00:03]} 47. f3 {[%emt 0:00:15]} Ra1+ {[%emt 0:00:44]} 48. Kf2 {[%emt 0:00:13]} h4 {[%emt 0:01:09]} 49. Rd2+ {[%emt 0:04:16]} Kc5 {[%emt 0:01:28]} 50. Ke3 {[%emt 0:02:09]} Ra3+ {[%emt 0:00:55]} 51. Ke2 {[%emt 0:01:23]} b5 {[%emt 0:01:48]} 52. Rd8 {[%emt 0:00:16]} Ra6 {[%emt 0:01:01]} 53. Rh8 {[%emt 0:01:52]} g5 {[%emt 0:02:59]} 54. Kd2 {[%emt 0:00:14]} Rd6+ {[%emt 0:01:06]} 55. Kc1 {[%emt 0:03:40]} Kd4 {[%emt 0:01:29]} 56. Re8 {[%emt 0:00:14]} Kd5 {[%emt 0:04:23]} 57. Kb2 {[%emt 0:01:44]} Re6 {[%emt 0:01:13]} 58. Rd8+ {[%emt 0:00:18]} Ke5 {[%emt 0:00:49]} 59. Kb3 {[%emt 0:05:50]} Kf4 {[%emt 0:01:49]} 60. Rd4+ {[%emt 0:00:07]} Ke3 {[%emt 0:02:16]} 61. Rg4 {[%emt 0:00:59]} Rc6 {[%emt 0:03:10]} 62. c3 {[%emt 0:00:15]} Kf2 {[%emt 0:02:01]} 63. Kb4 {[%emt 0:01:56]} Rc4+ {[%emt 0:00:34]} 64. Kxb5 {[%emt 0:00:24]} Rxg4 {[%emt 0:01:27]} 65. fxg4 {[%emt 0:00:07]} Kxg2 {[%emt 0:00:07]} 66. c4 {[%emt 0:00:02]} h3 {[%emt 0:00:08]} 67. c5 {[%emt 0:00:06]} h2 {[%emt 0:00:06]} 68. c6 {[%emt 0:00:04]} h1=Q {[%emt 0:00:08]} 69. Kb6 {[%emt 0:02:14]} Kg3 {[%emt 0:00:37]} 0-1

[Event "WEM-KT 2018"]
[Site "Illertissen"]
[Date "2018.09.02"]
[Round "9"]
[White "Guenther, Stefan"]
[Black "Schelberg, Martin"]
[Result "1-0"]
[ECO "E72"]
[WhiteElo "1907"]
[BlackElo "1727"]
[Annotator "NA"]
[PlyCount "91"]
[EventDate "2018.08.25"]
[EventType "tourn"]
[EventCountry "GER"]
[SourceTitle "playchess.com"]
[Source "ChessBase"]
[SourceQuality "1"]
[TimeControl "40/6000+30:3000+30"]

{[%evp 8,84,33,16,39,22,51,37,34,7,43,34,38,50,49,46,68,43,97,112,111,124,32767,107,32767,32767,32767,89,114,32767,32767,27,32,15,40,41,44,41,79,62,93,46,48,54,63,0,9,0,0,-62,-63,-62,-26,-77,-14,-72,0,0,0,0,14,3,0,0,82,0,82,81,117,32767,32767,32767,32767,32767,32767,239,12844,32767,29992]} 1. d4 {[%emt 0:10:30]} Nf6 {[%emt 0:09:51]} 2. c4 {[%emt 0:00:10]} g6 {[%emt 0:00:10]} 3. g3 {[%emt 0:00:09]} Bg7 {[%emt 0:00:36]} 4. Bg2 {[%emt 0:00:07]} O-O {[%emt 0:00:55]} 5. Nc3 {[%emt 0:00:11]} c6 {[%emt 0:00:45]} 6. e4 {[%emt 0:01:40]} d6 {[%emt 0:00:08]} 7. h3 {[%emt 0:01:05] LiveBook: 6 Games E72: Königsindisch (Varianten mit g2-g3 und Sge2)} (7. Nge2 e5 8. O-O Nbd7 9. b3 exd4 10. Nxd4 Re8 11. Be3 Nc5 12. f3 d5 13. Nxc6 bxc6 14. Bxc5 dxc4 15. Qxd8 Rxd8 16. Rfd1 Rxd1+ 17. Rxd1 Nd7 18. Bd4 cxb3 19. axb3 {½-½ (85) Hammer,J (2631)-Arvola,B (2471) Sarpsborg 2018}) 7... e5 {[%emt 0:01:41]} 8. Be3 {[%emt 0:05:15]} a5 $146 {[%emt 0:07:33]} ({Vorgänger:} 8... a6 9. a4 Nbd7 10. Nge2 Nb6 11. b3 Ne8 12. g4 f5 13. gxf5 gxf5 14. exf5 Bxf5 {1-0 (26) Jaunooby,A (2144)-Flynn,D (1978) Hastings 2012}) 9. Nf3 {[%emt 0:01:03]} Na6 {[%emt 0:02:37]} 10. O-O {[%emt 0:02:13]} exd4 {[%emt 0:02:39]} 11. Bxd4 {[%emt 0:02:33]} Be6 {[%emt 0:04:12]} 12. Qe2 {[%emt 0:15:36]} d5 {[%emt 0:12:41]} (12... a4 $14) 13. cxd5 {[%emt 0:19:06]} cxd5 {[%emt 0:02:28]} 14. exd5 {[%emt 0:00:39]} Bxd5 {[%emt 0:19:40]} 15. Nxd5 {[%emt 0:04:04]} Qxd5 {[%emt 0:04:58]} 16. Rfd1 {[%emt 0:01:20]} Qe4 {[%emt 0:08:56]} 17. Qd2 {[%emt 0:12:37]} (17. Qb5 $142) 17... Nb4 {[%emt 0:21:09]} 18. Ne1 {[%emt 0:16:53]} Qe7 {[%emt 0:00:38]} 19. a3 {[%emt 0:01:03]} Nc6 {[%emt 0:00:36]} 20. Bc3 {[%emt 0:01:57]} Rad8 {[%emt 0:02:16]} 21. Qc2 {[%emt 0:00:26]} Rc8 {[%emt 0:02:33]} 22. Qa4 {[%emt 0:00:50]} Qc5 {[%emt 0:02:14]} 23. Nd3 {[%emt 0:01:20]} Qb6 {[%emt 0:00:30]} 24. Bxc6 {[%emt 0:03:35]} Qxc6 {[%emt 0:00:32]} 25. Qxc6 {[%emt 0:00:48]} Rxc6 {[%emt 0:00:30]} 26. Ne5 {[%emt 0:00:46]} Rc5 {[%emt 0:00:58]} 27. Rd3 {[%emt 0:02:04]} Re8 {[%emt 0:00:28]} 28. Nd7 {[%emt 0:02:45]} ({White should try} 28. Re1 $11) 28... Nxd7 {[%emt 0:01:01]} 29. Bxg7 {[%emt 0:00:02]} Kxg7 {[%emt 0:00:30]} 30. Rxd7 {[%emt 0:00:05]} b5 {[%emt 0:00:34]} 31. Rb1 {[%emt 0:00:47]} (31. Rad1 $11) 31... b4 {[%emt 0:00:30]} ({Lieber} 31... Re2 $15 32. b4 axb4 33. Rxb4 Rf5) 32. axb4 {[%emt 0:00:11]} axb4 {[%emt 0:00:07]} 33. Rb7 {[%emt 0:00:22]} Rc4 {[%emt 0:00:44]} 34. b3 {[%emt 0:00:39]} Rd4 {[%emt 0:00:22]} 35. Rc1 {[%emt 0:00:29]} Red8 {[%emt 0:00:41]} (35... Re5 $11 {remains equal.}) 36. Rc4 {[%emt 0:00:52]} (36. Rcc7 $16 Rf8 37. Kg2) 36... Rd1+ {[%emt 0:00:28]} (36... Rxc4 $11 37. bxc4 Rd1+ 38. Kg2 Rb1) 37. Kg2 {[%emt 0:00:12]} Rb1 {[%emt 0:00:39]} 38. Rcxb4 {[%emt 0:00:50]} Rd2 {[%emt 0:00:29]} 39. Rf4 {[%emt 0:00:21]} Kh6 {[%emt 0:00:35]} 40. Rfxf7 {[%emt 0:00:14]} Rbb2 {[%emt 0:00:33]} 41. Rxh7+ $2 {[%emt 0:50:31]} (41. h4 {mates} g5 42. Rf6+ Kh5 43. Kh3 g4+ 44. Kg2 Rxf2+ 45. Rxf2 Rxf2+ 46. Kxf2) 41... Kg5 {[%emt 0:50:21]} 42. Rhf7 {[%emt 0:01:50]} Rd3 {[%emt 0:00:00]} 43. h4+ {[%emt 0:00:00]} Kh5 {[%emt 0:00:00]} 44. Rb4 {[%emt 0:00:00]} Kh6 {[%emt 0:00:00]} 45. g4 {[%emt 0:00:00]} Rd5 {[%emt 0:00:00]} 46. Rb8 {[%emt 0:00:00]} 1-0

[Event "WEM-KT 2018"]
[Site "Illertissen"]
[Date "2018.09.02"]
[Round "9"]
[White "Kohde, Janis"]
[Black "Jakob, Georg"]
[Result "1-0"]
[ECO "A48"]
[WhiteElo "1803"]
[BlackElo "2084"]
[Annotator "NA"]
[PlyCount "159"]
[EventDate "2018.08.25"]
[EventType "tourn"]
[EventCountry "GER"]
[SourceTitle "playchess.com"]
[Source "ChessBase"]
[SourceQuality "1"]
[TimeControl "40/6000+30:3000+30"]

{[%evp 8,154,8,29,0,-6,0,-9,-14,-6,0,0,7,19,4,7,7,-6,40,56,100,31,44,46,32767,32767,129,32767,32767,269,246,146,227,32767,351,125,32767,74,32767,131,347,181,32767,32767,32767,32767,168,185,213,204,205,216,214,224,214,228,261,233,235,181,192,177,300,350,323,200,304,32767,32767,32767,79,37,361,32767,32767,32767,657,1280,32767,32767,32767,32767,32767,29987,32767,32767,32767,29978,32767,32767,32767,32767,32767,32767,32767,32767,32767,685,253,32767,32767,32767,32767,32767,32767,32767,32767,796,32767,364,1220,32767,32767,32767,32767,32767,32767,32767,4137,32767,32767,32767,32767,32767,32767,32767,32767,32767,32767,32767,32767,32767,29978,32767,32767,32767,32767,32767,32767,32767,32767,32767,32767,32767,32767,257,29992,29993,29993]} 1. d4 {[%emt 0:09:36]} Nf6 {[%emt 0:09:36]} 2. Bf4 {[%emt 0:00:17]} g6 {[%emt 0:01:27]} 3. Nf3 {[%emt 0:01:29]} Bg7 {[%emt 0:00:07]} 4. e3 {[%emt 0:00:50]} d6 {[%emt 0:00:10]} 5. h3 {[%emt 0:01:10]} O-O {[%emt 0:00:43]} 6. Nbd2 {[%emt 0:00:50]} Nfd7 {[%emt 0:02:49]} 7. Bh2 {[%emt 0:03:26] A48: 1 d4 Nf6 2 Nf3 g6: Torre, London and Colle Systems} e5 {[%emt 0:02:51]} 8. c3 {[%emt 0:01:32]} Nc6 {[%emt 0:01:23]} 9. Be2 {[%emt 0:00:45] LiveBook: 17 Games} Kh8 {[%emt 0:03:11]} (9... f5 10. dxe5 dxe5 11. b4 Qe7 12. O-O g5 13. Qb3+ Kh8 14. b5 {1-0 (61) Kuzubov,Y (2695)-Firouzja,A (2549) Amol 2018}) 10. Qc2 {[%emt 0:13:22]} f5 $146 {[%emt 0:07:46]} ({Predecessor:} 10... a6 11. O-O f5 12. dxe5 dxe5 13. Rfd1 Qe7 14. Nf1 Nf6 {0-1 (42) Abdullah,J-Wrtal,A Bochum 1990}) 11. O-O-O {[%emt 0:04:58]} e4 {[%emt 0:06:42]} 12. Ne1 {[%emt 0:03:51]} Ne7 {[%emt 0:08:01]} 13. g4 {[%emt 0:07:32]} d5 {[%emt 0:04:47]} 14. Bg3 {[%emt 0:12:56]} (14. g5 $16) 14... c5 {[%emt 0:08:17]} 15. Ng2 {[%emt 0:01:37]} a6 {[%emt 0:04:33]} 16. h4 {[%emt 0:06:18]} b5 {[%emt 0:04:49]} (16... fxg4 $11 17. h5 g5) 17. h5 {[%emt 0:03:52]} b4 {[%emt 0:10:02]} 18. Nf4 {[%emt 0:07:46]} bxc3 {[%emt 0:03:15]} 19. bxc3 {[%emt 0:01:48]} ({Much less strong is} 19. Qxc3 $6 cxd4 20. exd4 fxg4) 19... cxd4 {[%emt 0:02:40]} 20. exd4 {[%emt 0:02:21]} Qb6 $2 {[%emt 0:07:46]} (20... g5 $16 {war nötig.} 21. h6 (21. Ne6 Qb6 $16) 21... gxf4 22. hxg7+ Kxg7 23. Bxf4 Kh8) 21. g5 $2 {[%emt 0:03:00]} (21. hxg6 $18 Nxg6 22. Nxd5) 21... Bb7 {[%emt 0:01:13]} 22. Qb2 {[%emt 0:06:32]} Qc6 {[%emt 0:08:16]} 23. Kb1 $2 {[%emt 0:04:26]} (23. hxg6 $18 {and the rest is easy.} Nxg6 24. Nxg6+ Qxg6 25. Qxb7) 23... Nb6 $2 {[%emt 0:02:45]} (23... Rfb8 $16) 24. h6 {[%emt 0:06:01]} (24. Qb4 $142) 24... Bxd4 {[%emt 0:01:09]} 25. cxd4 {[%emt 0:00:02]} Na4 {[%emt 0:00:10]} 26. Rc1 {[%emt 0:01:09]} Nxb2 {[%emt 0:00:30]} 27. Rxc6 {[%emt 0:00:02]} Nxc6 {[%emt 0:00:07]} 28. Kxb2 {[%emt 0:00:08]} Nxd4 {[%emt 0:01:21] [#]} 29. Nxg6+ $1 {[%emt 0:00:26]} hxg6 {[%emt 0:00:10]} 30. Be5+ {[%emt 0:00:09]} Kh7 {[%emt 0:00:00]} 31. Bxd4 {[%emt 0:00:13]} f4 {[%emt 0:01:01]} 32. Rc1 {[%emt 0:01:32]} Rac8 {[%emt 0:01:19]} 33. Rxc8 {[%emt 0:00:24]} Bxc8 {[%emt 0:00:41]} 34. Nb3 {[%emt 0:02:35]} e3 {[%emt 0:03:53] [#]} (34... a5 $16 {war nötig.} 35. Bb5 (35. Nxa5 Rf5 $16) 35... e3) 35. f3 $1 {[%emt 0:01:40]} ({Less strong is} 35. fxe3 f3 $16) 35... Rf7 {[%emt 0:02:40]} 36. Nc5 {[%emt 0:00:59]} a5 {[%emt 0:00:36]} 37. Nd3 {[%emt 0:00:38]} Ba6 {[%emt 0:00:31]} 38. Kc2 {[%emt 0:02:09]} Rc7+ {[%emt 0:01:01]} 39. Kd1 {[%emt 0:00:04]} Bc4 $2 {[%emt 0:00:31]} (39... Bxd3 $14 40. Bxd3 Rb7) 40. Nxf4 {[%emt 0:00:42]} Bxa2 {[%emt 0:00:20]} 41. Bd3 {[%emt 0:21:15]} Bb3+ {[%emt 0:21:58]} 42. Ke2 {[%emt 0:01:43]} Bc2 {[%emt 0:00:33]} 43. Nxd5 {[%emt 0:00:26]} Bxd3+ {[%emt 0:02:09]} 44. Kxd3 {[%emt 0:00:03]} Rf7 {[%emt 0:00:54]} 45. Nf6+ {[%emt 0:02:20]} Kh8 {[%emt 0:00:06]} 46. Kxe3 {[%emt 0:01:24]} a4 {[%emt 0:00:10]} 47. Nd5+ {[%emt 0:05:53]} Kh7 {[%emt 0:00:25]} 48. f4 {[%emt 0:00:56]} a3 {[%emt 0:00:33]} 49. Nb4 {[%emt 0:05:04]} Rb7 {[%emt 0:01:11]} 50. Nc2 {[%emt 0:02:48]} Rb1 {[%emt 0:01:18]} 51. Kd2 {[%emt 0:01:46]} a2 {[%emt 0:00:13]} 52. Na1 {[%emt 0:01:07]} Rf1 {[%emt 0:00:16]} 53. Be5 {[%emt 0:00:26]} Kg8 {[%emt 0:00:42]} 54. Kc2 {[%emt 0:00:19]} Rf2+ {[%emt 0:00:47]} 55. Kb3 {[%emt 0:00:11]} Kh7 {[%emt 0:00:46]} 56. Nc2 {[%emt 0:00:38]} Kg8 {[%emt 0:00:28]} 57. Nb4 {[%emt 0:01:35]} Rxf4 {[%emt 0:00:37]} 58. Nxa2 {[%emt 0:00:52]} Rf5 {[%emt 0:00:36]} 59. Bf6 {[%emt 0:00:41]} Kh7 {[%emt 0:00:28]} 60. Nc3 {[%emt 0:01:34]} Kg8 {[%emt 0:00:43]} 61. Kc4 {[%emt 0:00:33]} Kh7 {[%emt 0:00:27]} 62. Nd5 {[%emt 0:00:14]} Rf1 {[%emt 0:00:28]} 63. Bg7 {[%emt 0:01:25]} Rc1+ {[%emt 0:00:41]} 64. Kb3 {[%emt 0:00:12]} Kg8 {[%emt 0:00:32]} 65. Bf6 {[%emt 0:04:05]} Kh7 {[%emt 0:00:10]} 66. Nc3 {[%emt 0:00:56]} Rf1 {[%emt 0:01:10]} 67. Kc4 {[%emt 0:00:22]} Rf5 {[%emt 0:00:15]} 68. Nd5 {[%emt 0:00:12]} Rf1 {[%emt 0:00:19]} 69. Kc5 {[%emt 0:00:01]} Re1 {[%emt 0:00:24]} 70. Kd6 {[%emt 0:00:10]} Rd1 {[%emt 0:00:46]} 71. Ke6 {[%emt 0:01:20]} Rd2 {[%emt 0:00:25]} 72. Nf4 {[%emt 0:00:58]} Ra2 {[%emt 0:00:32]} 73. Kf7 {[%emt 0:01:03]} Ra7+ {[%emt 0:00:07]} 74. Be7 {[%emt 0:00:38]} Ra6 {[%emt 0:00:04]} 75. Ne6 {[%emt 0:00:17]} Ra7 {[%emt 0:00:23]} 76. Nf8+ {[%emt 0:00:32]} Kh8 {[%emt 0:00:01]} 77. Nxg6+ {[%emt 0:00:18]} Kh7 {[%emt 0:00:01]} 78. Nf8+ {[%emt 0:00:40]} Kh8 {[%emt 0:00:01]} 79. g6 {[%emt 0:00:16]} Ra3 {[%emt 0:00:20]} 80. g7# {[%emt 0:00:08]} 1-0